[Event "26th Abu Dhabi Master 2019"]
[Site "Abu Dhabi"]
[Date "2019.08.03"]
[Round "3.34"]
[White "Pranav, V."]
[Black "Venkatesh, M.R."]
[Result "1-0"]
[ECO "C78"]
[WhiteElo "2316"]
[BlackElo "2480"]
[Annotator "ChessBase"]
[PlyCount "153"]
[EventDate "2019.08.02"]
[EventType "swiss"]
[EventCountry "UAE"]
[SourceTitle "playchess.com"]
[Source "ChessBase"]
[SourceQuality "1"]
[TimeControl "5400+30"]

1. e4 {[%emt 0:00:00]} e5 {[%emt 0:01:22]} 2. Nf3 {[%emt 0:00:00]} Nc6 {[%emt 0:00:07]} 3. Bb5 {[%emt 0:00:00]} a6 {[%emt 0:00:08]} 4. Ba4 {[%emt 0:00:07]} Nf6 {[%emt 0:00:08]} 5. O-O {[%emt 0:00:32]} b5 {[%emt 0:00:11]} 6. Bb3 {[%emt 0:00:13]} Bc5 {[%emt 0:00:09]} 7. c3 {[%emt 0:02:27]} d6 {[%emt 0:00:08]} 8. d4 {[%emt 0:00:24]} Bb6 {[%emt 0:00:07]} 9. Be3 {[%emt 0:03:58]} O-O {[%emt 0:01:23]} 10. Nbd2 {[%emt 0:01:22]} h6 {[%emt 0:00:21]} 11. d5 {[%emt 0:06:04]} Ne7 {[%emt 0:11:04]} 12. Bxb6 {[%emt 0:02:59]} cxb6 {[%emt 0:00:06]} 13. Bc2 {[%emt 0:00:33]} Ng6 {[%emt 0:00:41]} 14. g3 {[%emt 0:01:36]} Bg4 {[%emt 0:15:23]} 15. Re1 {[%emt 0:05:55]} Qc8 {[%emt 0:04:00]} 16. Re3 {[%emt 0:09:32]} Bd7 {[%emt 0:11:26]} 17. Bd3 {[%emt 0:02:18]} Ng4 {[%emt 0:02:49]} 18. Re1 {[%emt 0:01:20]} f5 {[%emt 0:01:41]} 19. exf5 {[%emt 0:02:47]} Bxf5 {[%emt 0:00:22]} 20. Ne4 {[%emt 0:00:19]} Qd7 {[%emt 0:02:47]} 21. Nfd2 {[%emt 0:01:32]} Ne7 {[%emt 0:13:37]} 22. f3 {[%emt 0:08:06]} Nf6 {[%emt 0:00:15]} 23. Nxf6+ {[%emt 0:02:00]} Rxf6 {[%emt 0:00:04]} 24. Ne4 {[%emt 0:01:23]} Rf7 {[%emt 0:03:04]} 25. Bc2 {[%emt 0:02:25]} Raf8 {[%emt 0:03:21]} 26. Re3 {[%emt 0:04:56]} Bg6 {[%emt 0:04:20]} 27. Qd3 {[%emt 0:09:50]} b4 {[%emt 0:06:06]} 28. Rf1 {[%emt 0:04:52]} bxc3 {[%emt 0:00:44]} 29. bxc3 {[%emt 0:00:08]} b5 {[%emt 0:00:13]} 30. Re2 {[%emt 0:01:31]} a5 {[%emt 0:08:53]} 31. Ref2 {[%emt 0:01:39]} b4 {[%emt 0:00:42]} 32. Qa6 {[%emt 0:03:19]} Nf5 {[%emt 0:03:16]} 33. Re1 {[%emt 0:01:42]} bxc3 {[%emt 0:01:42]} 34. Nxc3 {[%emt 0:00:10]} Kh7 {[%emt 0:01:45]} 35. Nb5 {[%emt 0:01:17]} Rf6 {[%emt 0:00:23]} 36. Qc6 {[%emt 0:01:57]} Qf7 {[%emt 0:00:55]} 37. a4 {[%emt 0:02:26]} h5 {[%emt 0:02:15]} 38. Qc4 {[%emt 0:02:15]} Ne7 {[%emt 0:01:30]} 39. Be4 {[%emt 0:01:19]} Bxe4 {[%emt 0:00:56]} 40. Qxe4+ {[%emt 0:00:07]} Kg8 {[%emt 0:00:13]} 41. Rd1 {[%emt 0:00:37]} Rc8 {[%emt 0:00:57]} 42. Re2 {[%emt 0:02:39]} Ng6 {[%emt 0:00:37]} 43. Rc2 {[%emt 0:01:33]} Rf8 {[%emt 0:00:41]} 44. Rc7 {[%emt 0:00:46]} Qe8 {[%emt 0:00:02]} 45. Rdc1 {[%emt 0:01:18]} Ne7 {[%emt 0:01:01]} 46. Rb7 {[%emt 0:03:40]} Nf5 {[%emt 0:00:29]} 47. Rcc7 {[%emt 0:00:11]} Qg6 {[%emt 0:00:32]} 48. Kf2 {[%emt 0:03:08]} Kh8 {[%emt 0:00:27]} 49. Ke1 {[%emt 0:01:54]} Qg5 {[%emt 0:00:18]} 50. Kd1 {[%emt 0:01:36]} Ne3+ {[%emt 0:00:42]} 51. Ke2 {[%emt 0:00:05]} Nf5 {[%emt 0:00:25]} 52. Ke1 {[%emt 0:00:48]} Nxg3 {[%emt 0:00:32]} 53. hxg3 {[%emt 0:00:13]} Rxf3 {[%emt 0:00:14]} 54. Kd1 {[%emt 0:00:35]} Rf2 {[%emt 0:00:48]} 55. Qd3 {[%emt 0:00:14]} Rg2 {[%emt 0:00:35]} 56. Rf7 {[%emt 0:00:23]} Rc8 57. Rbc7 {[%emt 0:00:22]} Qg4+ {[%emt 0:00:57]} 58. Ke1 {[%emt 0:02:08]} e4 {[%emt 0:00:32]} 59. Rxc8+ {[%emt 0:00:44]} Qxc8 {[%emt 0:00:22]} 60. Qc3 {[%emt 0:00:12]} Qg4 {[%emt 0:00:38]} 61. Nd4 {[%emt 0:01:12]} Rxg3 {[%emt 0:00:20]} 62. Qc4 {[%emt 0:00:19]} Rg1+ {[%emt 0:00:33]} 63. Rf1 {[%emt 0:00:01]} e3 {[%emt 0:00:37]} 64. Rxg1 {[%emt 0:00:30]} Qxg1+ {[%emt 0:00:01]} 65. Ke2 {[%emt 0:00:04]} Qf2+ {[%emt 0:00:58]} 66. Kd3 {[%emt 0:00:01]} Qd2+ {[%emt 0:00:34]} 67. Ke4 {[%emt 0:00:02]} Kh7 {[%emt 0:00:20]} 68. Qf1 {[%emt 0:00:20]} Qf2 {[%emt 0:00:24]} 69. Qh3 {[%emt 0:00:21]} g6 {[%emt 0:00:38]} 70. Qxe3 {[%emt 0:00:51]} Qa2 {[%emt 0:00:36]} 71. Qf3 {[%emt 0:01:04]} Qxa4 {[%emt 0:00:30]} 72. Qf7+ {[%emt 0:00:05]} Kh6 {[%emt 0:00:03]} 73. Qf8+ {[%emt 0:00:02]} Kh7 {[%emt 0:00:09]} 74. Qxd6 {[%emt 0:00:14]} Qc4 {[%emt 0:00:37]} 75. Qe7+ {[%emt 0:00:27]} Kh6 {[%emt 0:00:05]} 76. Qf8+ {[%emt 0:00:22]} Kh7 {[%emt 0:00:05]} 77. d6 {[%emt 0:00:03]} 1-0

[Event "26th Abu Dhabi Master 2019"]
[Site "Abu Dhabi"]
[Date "2019.08.03"]
[Round "3.35"]
[White "Costachi, Mihnea"]
[Black "Vantika Agrawal"]
[Result "1/2-1/2"]
[ECO "A49"]
[WhiteElo "2471"]
[BlackElo "2243"]
[Annotator "ChessBase"]
[PlyCount "41"]
[EventDate "2019.08.02"]
[EventType "swiss"]
[EventCountry "UAE"]
[SourceTitle "playchess.com"]
[Source "ChessBase"]
[SourceQuality "1"]
[TimeControl "5400+30"]

1. d4 Nf6 2. Nf3 g6 3. g3 Bg7 4. Bg2 O-O 5. O-O d6 6. b3 e5 7. dxe5 dxe5 8. Ba3 Qxd1 9. Rxd1 Re8 10. Nc3 e4 11. Nd4 a6 12. h3 h5 13. e3 b6 14. Bb2 Bb7 15. Nde2 Nc6 16. Nf4 Ne5 17. Ncd5 Nxd5 18. Nxd5 Nf3+ 19. Bxf3 Bxb2 20. Rab1 exf3 21. Rxb2 1/2-1/2

[Event "26th Abu Dhabi Master 2019"]
[Site "Abu Dhabi"]
[Date "2019.08.03"]
[Round "3.36"]
[White "Shyaamnikhil P"]
[Black "Ajay Krishna, S."]
[Result "1/2-1/2"]
[ECO "B90"]
[WhiteElo "2456"]
[BlackElo "2280"]
[Annotator "ChessBase"]
[PlyCount "140"]
[EventDate "2019.08.02"]
[EventType "swiss"]
[EventCountry "UAE"]
[SourceTitle "playchess.com"]
[Source "ChessBase"]
[SourceQuality "1"]
[TimeControl "5400+30"]

1. e4 {[%emt 0:00:31]} c5 {[%emt 0:00:45]} 2. Nf3 {[%emt 0:00:12]} d6 {[%emt 0:00:10]} 3. Nc3 {[%emt 0:01:36]} a6 {[%emt 0:00:31]} 4. d4 {[%emt 0:05:30]} cxd4 {[%emt 0:00:00]} 5. Nxd4 {[%emt 0:00:04]} Nf6 {[%emt 0:00:00]} 6. h3 {[%emt 0:00:35]} e5 {[%emt 0:00:30]} 7. Nb3 {[%emt 0:01:41]} Be6 {[%emt 0:02:45]} 8. f4 {[%emt 0:02:30]} Be7 {[%emt 0:01:58]} 9. f5 {[%emt 0:02:24]} Bc8 {[%emt 0:00:14]} 10. g4 {[%emt 0:00:46]} h6 {[%emt 0:02:10]} 11. a4 {[%emt 0:02:28]} b6 {[%emt 0:01:28]} 12. Bg2 {[%emt 0:00:33]} Bb7 {[%emt 0:00:15]} 13. Be3 {[%emt 0:05:18]} Nbd7 {[%emt 0:02:11]} 14. Qe2 {[%emt 0:04:25]} Rc8 {[%emt 0:11:29]} 15. Bf2 {[%emt 0:04:17]} Rc7 {[%emt 0:10:41]} 16. h4 {[%emt 0:10:30]} Qa8 {[%emt 0:10:58]} 17. Nd2 {[%emt 0:11:35]} Qc8 {[%emt 0:05:29]} 18. Rh3 {[%emt 0:12:17]} g6 {[%emt 0:07:55]} 19. O-O-O {[%emt 0:02:35]} gxf5 {[%emt 0:05:32]} 20. gxf5 {[%emt 0:00:39]} h5 {[%emt 0:00:32]} 21. Kb1 {[%emt 0:00:38]} Ng4 {[%emt 0:16:42]} 22. Be1 {[%emt 0:01:19]} Ndf6 {[%emt 0:01:57]} 23. Nf1 {[%emt 0:01:51]} Bc6 {[%emt 0:03:43]} 24. Nd2 {[%emt 0:01:46]} Rd7 {[%emt 0:08:23]} 25. Rd3 {[%emt 0:08:20]} b5 {[%emt 0:01:27]} 26. axb5 {[%emt 0:03:23]} axb5 {[%emt 0:00:11]} 27. Nd5 {[%emt 0:00:11]} Bxd5 {[%emt 0:01:36]} 28. exd5 {[%emt 0:00:09]} Rc7 {[%emt 0:00:54]} 29. Rb3 {[%emt 0:07:42]} Rxc2 {[%emt 0:02:15]} 30. Qxb5+ {[%emt 0:00:18]} Kf8 {[%emt 0:00:08]} 31. Qd3 {[%emt 0:05:38]} Rc5 {[%emt 0:00:33]} 32. Rb6 {[%emt 0:00:10]} Kg7 {[%emt 0:00:42]} 33. Rc6 {[%emt 0:00:06]} Rxc6 {[%emt 0:00:23]} 34. dxc6 {[%emt 0:00:06]} d5 {[%emt 0:00:07]} 35. Rc1 {[%emt 0:00:40]} e4 {[%emt 0:00:15]} 36. Qc3 {[%emt 0:01:44]} Qxf5 {[%emt 0:01:00]} 37. Nb3 {[%emt 0:00:10]} Bd6 {[%emt 0:01:04]} 38. Nd4 {[%emt 0:00:17]} Qg6 {[%emt 0:00:40]} 39. Bf1 {[%emt 0:00:50]} Bf4 {[%emt 0:00:34]} 40. Rc2 {[%emt 0:00:26]} Be5 {[%emt 0:00:49]} 41. Bg3 {[%emt 0:01:35]} Bxg3 {[%emt 0:00:57]} 42. Qxg3 {[%emt 0:00:07]} Ne8 {[%emt 0:00:20]} 43. c7 {[%emt 0:00:38]} Nxc7 {[%emt 0:00:01]} 44. Qxc7 {[%emt 0:00:21]} Qf6 {[%emt 0:00:05]} 45. Qa7 {[%emt 0:02:16]} Qxf1+ {[%emt 0:00:03]} 46. Ka2 {[%emt 0:00:05]} Rh6 {[%emt 0:01:01]} 47. Nc6 {[%emt 0:00:25]} Qf6 {[%emt 0:00:46]} 48. b4 {[%emt 0:00:34]} Ne5 {[%emt 0:01:00]} 49. b5 {[%emt 0:00:07]} Nc4 {[%emt 0:00:46]} 50. Rf2 {[%emt 0:00:12]} Qg6 {[%emt 0:00:31]} 51. Qd4+ {[%emt 0:00:06]} Kh7 {[%emt 0:00:27]} 52. Qxd5 {[%emt 0:00:14]} Nd6 {[%emt 0:00:00]} 53. Nd8 {[%emt 0:01:36]} e3 {[%emt 0:00:32]} 54. Rg2 {[%emt 0:00:46]} Qf6 {[%emt 0:00:18]} 55. Nc6 {[%emt 0:00:47]} Qe6 {[%emt 0:00:24]} 56. Qxe6 {[%emt 0:00:47]} Rxe6 {[%emt 0:00:03]} 57. Nd4 {[%emt 0:00:06]} Re4 {[%emt 0:00:11]} 58. Nf3 {[%emt 0:00:04]} f6 {[%emt 0:00:14]} 59. b6 {[%emt 0:00:06]} e2 {[%emt 0:00:25]} 60. Ne1 {[%emt 0:00:11]} Re7 {[%emt 0:01:56]} 61. Kb3 {[%emt 0:00:23]} Rb7 {[%emt 0:00:50]} 62. Rxe2 {[%emt 0:00:15]} Rxb6+ {[%emt 0:00:01]} 63. Kc3 {[%emt 0:00:13]} Nf5 {[%emt 0:00:07]} 64. Rf2 {[%emt 0:01:21]} Kg6 {[%emt 0:00:57]} 65. Ng2 {[%emt 0:00:06]} Ra6 {[%emt 0:00:52]} 66. Nf4+ {[%emt 0:00:22]} Kh6 {[%emt 0:00:03]} 67. Nd5 {[%emt 0:00:21]} Nxh4 {[%emt 0:00:10]} 68. Rxf6+ {[%emt 0:00:04]} Rxf6 {[%emt 0:00:03]} 69. Nxf6 {[%emt 0:00:03]} Kg5 {[%emt 0:00:02]} 70. Nxh5 {[%emt 0:00:06]} Kxh5 {[%emt 0:00:03]} 1/2-1/2

[Event "26th Abu Dhabi Master 2019"]
[Site "Abu Dhabi"]
[Date "2019.08.03"]
[Round "3.37"]
[White "Muradli, Mahammad"]
[Black "Tabada, Jobannie C."]
[Result "1-0"]
[ECO "E92"]
[WhiteElo "2454"]
[BlackElo "2216"]
[Annotator "ChessBase"]
[PlyCount "41"]
[EventDate "2019.08.02"]
[EventType "swiss"]
[EventCountry "UAE"]
[SourceTitle "playchess.com"]
[Source "ChessBase"]
[SourceQuality "1"]
[TimeControl "5400+30"]

1. d4 {[%emt 0:02:50]} Nf6 {[%emt 0:00:00]} 2. c4 {[%emt 0:00:04]} g6 {[%emt 0:00:00]} 3. Nc3 {[%emt 0:00:04]} Bg7 {[%emt 0:00:00]} 4. e4 {[%emt 0:00:10]} d6 {[%emt 0:00:00]} 5. Nf3 {[%emt 0:00:06]} O-O {[%emt 0:00:02]} 6. Be2 {[%emt 0:00:03]} e5 {[%emt 0:00:38]} 7. Be3 {[%emt 0:00:05]} Ng4 {[%emt 0:04:24]} 8. Bg5 {[%emt 0:02:13]} f6 {[%emt 0:00:02]} 9. Bh4 {[%emt 0:00:09]} g5 {[%emt 0:00:05]} 10. Bg3 {[%emt 0:00:10]} Nc6 {[%emt 0:02:03]} 11. d5 {[%emt 0:06:43]} Nd4 {[%emt 0:28:54]} 12. Nxd4 {[%emt 0:00:29]} exd4 {[%emt 0:02:50]} 13. Qxd4 {[%emt 0:07:08]} f5 {[%emt 0:01:34]} 14. Qd1 {[%emt 0:00:29]} Bxc3+ {[%emt 0:06:36]} 15. bxc3 {[%emt 0:00:37]} Qf6 {[%emt 0:00:02]} 16. O-O {[%emt 0:01:46]} Nh6 {[%emt 0:02:31]} 17. f4 {[%emt 0:06:48]} fxe4 {[%emt 0:10:31]} 18. fxg5 {[%emt 0:02:05]} Qxg5 {[%emt 0:00:21]} 19. Rxf8+ {[%emt 0:00:11]} Kxf8 {[%emt 0:00:01]} 20. Qd4 {[%emt 0:00:23]} Qe7 {[%emt 0:03:23]} 21. Qh8+ {[%emt 0:35:03] Qg5 Qd4 Nf7 Qxe4 Bf5 Qd4 Re8 Bf3 Qe3+ Bf2 Qxd4 Bxd4 b6} 1-0

[Event "26th Abu Dhabi Master 2019"]
[Site "Abu Dhabi"]
[Date "2019.08.03"]
[Round "3.38"]
[White "Lee, Jun Hyeok"]
[Black "Mrudul Dehankar"]
[Result "1-0"]
[ECO "A17"]
[WhiteElo "2383"]
[BlackElo "2074"]
[Annotator "NA"]
[PlyCount "69"]
[EventDate "2019.08.02"]
[EventType "swiss"]
[EventCountry "UAE"]
[SourceTitle "playchess.com"]
[Source "ChessBase"]
[SourceQuality "1"]
[TimeControl "5400+30"]

1. Nf3 Nf6 2. c4 e6 3. Nc3 Bb4 4. Qc2 O-O 5. a3 Bxc3 6. Qxc3 b6 7. b4 Bb7 8. Bb2 d6 9. e3 Nbd7 10. Be2 a5 11. O-O Qe7 12. d3 e5 13. Nd2 Rfe8 14. h3 Nf8 15. Rfe1 Ng6 16. Qc2 Nd7 17. d4 Nh4 18. d5 Qg5 19. g3 f5 20. Kh2 Ng6 21. f4 Qf6 22. e4 fxe4 23. Nxe4 Qf8 24. f5 Ne7 25. g4 h6 26. b5 Nf6 27. Rg1 Nxe4 28. Qxe4 Qf6 29. Raf1 Rf8 30. Bd3 Kf7 31. Bc1 Ke8 32. g5 hxg5 33. Bxg5 Qf7 34. f6 Ng8 35. Qh7 1-0

[Event "26th Abu Dhabi Master 2019"]
[Site "Abu Dhabi"]
[Date "2019.08.03"]
[Round "3.39"]
[White "Deshpande, Aniruddha"]
[Black "Aditya Mittal"]
[Result "1/2-1/2"]
[ECO "D30"]
[WhiteElo "2234"]
[BlackElo "2429"]
[Annotator "NA"]
[PlyCount "78"]
[EventDate "2019.08.02"]
[EventType "swiss"]
[EventCountry "UAE"]
[SourceTitle "playchess.com"]
[Source "ChessBase"]
[SourceQuality "1"]
[TimeControl "5400+30"]

1. d4 {[%emt 0:00:00]} d5 {[%emt 0:00:00]} 2. c4 {[%emt 0:00:04]} e6 {[%emt 0:00:00]} 3. Nf3 {[%emt 0:01:24]} a6 {[%emt 0:00:03]} 4. cxd5 {[%emt 0:05:34]} exd5 {[%emt 0:00:23]} 5. Nc3 {[%emt 0:00:15]} Nf6 {[%emt 0:00:06]} 6. g3 {[%emt 0:00:14]} Bd6 {[%emt 0:02:09]} 7. Bg2 {[%emt 0:00:06]} c6 {[%emt 0:00:47]} 8. O-O {[%emt 0:02:12]} O-O {[%emt 0:00:18]} 9. Bf4 {[%emt 0:02:53]} Re8 {[%emt 0:03:35]} 10. Qb3 {[%emt 0:01:53]} Qe7 {[%emt 0:05:25]} 11. e3 {[%emt 0:04:47]} Nbd7 {[%emt 0:02:08]} 12. Rac1 {[%emt 0:00:58]} Nf8 {[%emt 0:06:30]} 13. Na4 {[%emt 0:08:40]} Rb8 {[%emt 0:03:28]} 14. Nc5 {[%emt 0:03:57]} Ng6 {[%emt 0:03:10]} 15. Bxd6 {[%emt 0:07:39]} Qxd6 {[%emt 0:00:03]} 16. Nd3 {[%emt 0:03:17]} Ne4 {[%emt 0:02:43]} 17. Qb4 {[%emt 0:01:41]} Qxb4 {[%emt 0:22:19]} 18. Nxb4 {[%emt 0:00:06]} Bf5 {[%emt 0:00:18]} 19. Rfd1 {[%emt 0:01:36]} f6 {[%emt 0:02:32]} 20. Nd3 {[%emt 0:00:38]} Nf8 {[%emt 0:02:13]} 21. Nh4 {[%emt 0:04:42]} Be6 {[%emt 0:02:39]} 22. Nc5 {[%emt 0:03:30]} Bg4 {[%emt 0:15:07]} 23. Bf3 {[%emt 0:04:27]} Bxf3 {[%emt 0:00:28]} 24. Nxf3 {[%emt 0:00:03]} g5 {[%emt 0:00:13]} 25. h4 {[%emt 0:02:25]} h6 {[%emt 0:01:32]} 26. hxg5 {[%emt 0:04:49]} hxg5 {[%emt 0:00:03]} 27. Nxe4 {[%emt 0:00:20]} Rxe4 {[%emt 0:03:28]} 28. Kg2 {[%emt 0:01:12]} Re7 {[%emt 0:00:27]} 29. Ne1 {[%emt 0:04:09]} Rh7 {[%emt 0:03:19]} 30. Kf3 {[%emt 0:00:13]} Ne6 {[%emt 0:00:56]} 31. Nd3 {[%emt 0:00:15]} Kf7 {[%emt 0:01:24]} 32. Nc5 {[%emt 0:02:18]} Nxc5 {[%emt 0:01:17]} 33. Rxc5 {[%emt 0:00:03]} f5 {[%emt 0:03:51]} 34. a4 {[%emt 0:02:05]} Rh2 {[%emt 0:01:26]} 35. Rf1 {[%emt 0:07:45]} g4+ {[%emt 0:06:52]} 36. Ke2 {[%emt 0:00:13]} Ke6 {[%emt 0:00:15]} 37. b4 {[%emt 0:02:47]} Ra8 {[%emt 0:01:04]} 38. Rb1 {[%emt 0:01:00]} Kd6 {[%emt 0:02:18]} 39. Rc2 {[%emt 0:00:10]} b6 {[%emt 0:01:16]} 1/2-1/2

[Event "26th Abu Dhabi Master 2019"]
[Site "Abu Dhabi"]
[Date "2019.08.03"]
[Round "3.40"]
[White "Eynullayev, Altay"]
[Black "Sammed Jaykumar, Shete"]
[Result "1-0"]
[ECO "E73"]
[WhiteElo "2188"]
[BlackElo "2416"]
[Annotator "ChessBase"]
[PlyCount "102"]
[EventDate "2019.08.02"]
[EventType "swiss"]
[EventCountry "UAE"]
[SourceTitle "playchess.com"]
[Source "ChessBase"]
[SourceQuality "1"]
[TimeControl "5400+30"]

1. d4 {[%emt 0:00:00]} Nf6 {[%emt 0:00:00]} 2. c4 {[%emt 0:00:00]} g6 {[%emt 0:00:00]} 3. Nc3 {[%emt 0:00:00]} Bg7 {[%emt 0:00:04]} 4. e4 {[%emt 0:00:00]} d6 {[%emt 0:00:03]} 5. Be2 {[%emt 0:00:00]} Na6 {[%emt 0:01:51]} 6. Be3 {[%emt 0:01:12]} O-O {[%emt 0:00:55]} 7. Nf3 {[%emt 0:00:47]} c5 {[%emt 0:01:15]} 8. d5 {[%emt 0:00:09]} Nc7 {[%emt 0:05:42]} 9. O-O {[%emt 0:01:16]} Rb8 {[%emt 0:00:57]} 10. h3 {[%emt 0:03:53]} Bd7 {[%emt 0:04:50]} 11. a4 {[%emt 0:08:06]} b6 {[%emt 0:01:35]} 12. Nd2 {[%emt 0:09:29]} a6 {[%emt 0:01:22]} 13. f4 {[%emt 0:09:46]} b5 {[%emt 0:02:42]} 14. e5 {[%emt 0:04:52]} Nfe8 {[%emt 0:00:19]} 15. Nf3 {[%emt 0:02:51]} bxc4 {[%emt 0:02:10]} 16. Ra2 {[%emt 0:03:59]} Rb4 {[%emt 0:05:14]} 17. Nd2 {[%emt 0:01:51]} e6 {[%emt 0:01:48]} 18. dxe6 {[%emt 0:07:09]} Bxe6 {[%emt 0:07:18]} 19. Nde4 {[%emt 0:01:08]} d5 {[%emt 0:09:05]} 20. Bxc5 {[%emt 0:03:20]} Qb8 {[%emt 0:05:19]} 21. Ng5 {[%emt 0:10:31]} Rxb2 {[%emt 0:08:23]} 22. Rxb2 {[%emt 0:01:21]} Qxb2 {[%emt 0:00:06]} 23. Qd4 {[%emt 0:00:12]} Bf5 {[%emt 0:02:59]} 24. g4 {[%emt 0:04:25]} Bc2 {[%emt 0:01:46]} 25. Qd2 {[%emt 0:02:05]} h6 {[%emt 0:04:08]} 26. Rb1 {[%emt 0:05:35]} Qxc3 {[%emt 0:00:34]} 27. Qxc3 {[%emt 0:00:08]} Bxb1 {[%emt 0:00:03]} 28. Nf3 {[%emt 0:00:32]} Ne6 {[%emt 0:00:21]} 29. Bxf8 {[%emt 0:03:29]} Bxf8 {[%emt 0:00:27]} 30. Qd2 {[%emt 0:03:15]} Be4 {[%emt 0:00:57]} 31. Kh2 {[%emt 0:02:06]} N8c7 {[%emt 0:04:12]} 32. Kg3 {[%emt 0:01:07]} Nc5 {[%emt 0:02:17]} 33. Qa5 {[%emt 0:05:50]} N7e6 {[%emt 0:00:06]} 34. Nd2 {[%emt 0:01:01]} Nd4 {[%emt 0:13:23]} 35. Bd1 {[%emt 0:01:44]} Bd3 {[%emt 0:04:46]} 36. Qc3 {[%emt 0:02:55]} Nc6 {[%emt 0:00:30]} 37. Bf3 {[%emt 0:00:34]} d4 {[%emt 0:00:33]} 38. Qa1 {[%emt 0:00:15]} Nxe5 {[%emt 0:02:34]} 39. Qxd4 {[%emt 0:01:14]} Nxf3 {[%emt 0:00:21]} 40. Kxf3 {[%emt 0:00:03]} Nxa4 {[%emt 0:03:11]} 41. Nxc4 {[%emt 0:00:08]} Bxc4 {[%emt 0:00:08]} 42. Qxc4 {[%emt 0:00:04]} Nc5 {[%emt 0:00:04]} 43. Qa2 {[%emt 0:00:33]} Bd6 {[%emt 0:00:28]} 44. Ke3 {[%emt 0:00:33]} Kf8 {[%emt 0:00:30]} 45. Qd5 {[%emt 0:00:50]} Ke7 {[%emt 0:01:22]} 46. f5 {[%emt 0:00:26]} Nd7 {[%emt 0:00:11]} 47. Qa8 {[%emt 0:01:13]} Nc5 {[%emt 0:01:06]} 48. Qh8 {[%emt 0:00:56]} gxf5 {[%emt 0:01:22]} 49. gxf5 {[%emt 0:00:03]} a5 {[%emt 0:00:03]} 50. Qxh6 {[%emt 0:00:31]} Na6 {[%emt 0:03:10]} 51. Qg5+ {[%emt 0:00:16]} Kd7 {[%emt 0:00:23]} 1-0

[Event "26th Abu Dhabi Master 2019"]
[Site "Abu Dhabi"]
[Date "2019.08.03"]
[Round "3.41"]
[White "Mahalakshmi, M."]
[Black "Sankalp Gupta"]
[Result "1/2-1/2"]
[ECO "E46"]
[WhiteElo "2173"]
[BlackElo "2416"]
[Annotator "NA"]
[PlyCount "55"]
[EventDate "2019.08.02"]
[EventType "swiss"]
[EventCountry "UAE"]
[SourceTitle "playchess.com"]
[Source "ChessBase"]
[SourceQuality "1"]
[TimeControl "5400+30"]

1. d4 {[%emt 0:00:00]} Nf6 {[%emt 0:00:00]} 2. c4 {[%emt 0:00:00]} e6 {[%emt 0:00:00]} 3. Nc3 Bb4 {[%emt 0:00:03]} 4. e3 {[%emt 0:00:00]} O-O {[%emt 0:00:06]} 5. Bd2 {[%emt 0:00:00]} c5 {[%emt 0:00:08]} 6. a3 {[%emt 0:00:46]} Bxc3 {[%emt 0:00:02]} 7. Bxc3 {[%emt 0:00:06]} Ne4 {[%emt 0:00:04]} 8. Rc1 {[%emt 0:00:29]} d6 {[%emt 0:01:02]} 9. Nf3 {[%emt 0:06:32]} Qe7 {[%emt 0:00:58]} 10. Qc2 {[%emt 0:07:38]} f5 {[%emt 0:02:20]} 11. dxc5 {[%emt 0:02:31]} dxc5 {[%emt 0:01:36]} 12. Bd3 {[%emt 0:04:18]} Nxc3 {[%emt 0:00:28]} 13. Qxc3 {[%emt 0:00:06]} b6 {[%emt 0:00:10]} 14. O-O {[%emt 0:04:44]} Bb7 {[%emt 0:00:02]} 15. Be2 {[%emt 0:01:07]} Nd7 {[%emt 0:02:22]} 16. Ne5 {[%emt 0:02:40]} Nf6 {[%emt 0:01:21]} 17. f3 {[%emt 0:01:49]} Rad8 {[%emt 0:02:17]} 18. Rfd1 {[%emt 0:03:42]} Nh5 {[%emt 0:00:56]} 19. Rxd8 {[%emt 0:07:35]} Rxd8 {[%emt 0:00:24]} 20. Rd1 {[%emt 0:00:43]} f4 {[%emt 0:01:41]} 21. Rxd8+ {[%emt 0:07:26]} Qxd8 {[%emt 0:00:21]} 22. Qd3 {[%emt 0:00:03]} Qxd3 {[%emt 0:01:50]} 23. Bxd3 {[%emt 0:00:47]} fxe3 {[%emt 0:11:23]} 24. g3 {[%emt 0:05:02]} Nf6 {[%emt 0:01:34]} 25. Kf1 {[%emt 0:00:16]} Kf8 {[%emt 0:00:17]} 26. Ke2 {[%emt 0:00:15]} Ke7 {[%emt 0:00:09]} 27. Kxe3 {[%emt 0:00:20]} h6 {[%emt 0:00:49]} 28. Bc2 {[%emt 0:02:59]} 1/2-1/2

[Event "26th Abu Dhabi Master 2019"]
[Site "Abu Dhabi"]
[Date "2019.08.03"]
[Round "3.42"]
[White "Utsab Chatterjee"]
[Black "Ni, Shiqun"]
[Result "0-1"]
[ECO "B05"]
[WhiteElo "2150"]
[BlackElo "2407"]
[Annotator "NA"]
[PlyCount "88"]
[EventDate "2019.08.02"]
[EventType "swiss"]
[EventCountry "UAE"]
[SourceTitle "playchess.com"]
[Source "ChessBase"]
[SourceQuality "1"]
[TimeControl "5400+30"]

1. e4 {[%emt 0:00:00]} Nf6 {[%emt 0:01:30]} 2. e5 {[%emt 0:00:19]} Nd5 {[%emt 0:00:05]} 3. d4 {[%emt 0:00:34]} d6 {[%emt 0:00:06]} 4. Nf3 {[%emt 0:00:22]} Bg4 {[%emt 0:01:12]} 5. Be2 {[%emt 0:00:48]} e6 {[%emt 0:04:52]} 6. c4 {[%emt 0:02:29]} Nb6 {[%emt 0:00:05]} 7. exd6 {[%emt 0:02:31]} cxd6 {[%emt 0:00:16]} 8. Be3 {[%emt 0:00:09]} Be7 {[%emt 0:02:12]} 9. O-O {[%emt 0:02:23]} O-O {[%emt 0:07:47]} 10. Nc3 {[%emt 0:01:31]} d5 {[%emt 0:02:55]} 11. b3 {[%emt 0:02:25]} Nc6 {[%emt 0:00:37]} 12. c5 {[%emt 0:05:05]} Nc8 {[%emt 0:07:04]} 13. a3 {[%emt 0:01:13]} Bf6 {[%emt 0:01:13]} 14. b4 {[%emt 0:00:46]} a6 {[%emt 0:00:24]} 15. Rb1 {[%emt 0:01:12]} N8e7 {[%emt 0:01:00]} 16. h3 {[%emt 0:02:24]} Bxf3 {[%emt 0:00:44]} 17. Bxf3 {[%emt 0:00:07]} Nf5 {[%emt 0:00:05]} 18. Ne2 {[%emt 0:00:13]} Qc7 {[%emt 0:08:17]} 19. Bg4 {[%emt 0:04:54]} Nxe3 {[%emt 0:00:28]} 20. fxe3 {[%emt 0:00:04]} Bg5 {[%emt 0:06:15]} 21. Qd3 {[%emt 0:07:45]} Rad8 {[%emt 0:03:04]} 22. a4 {[%emt 0:06:13]} Rfe8 {[%emt 0:02:28]} 23. b5 {[%emt 0:12:29]} axb5 {[%emt 0:00:05]} 24. axb5 {[%emt 0:00:06]} Na5 {[%emt 0:00:05]} 25. Kh1 {[%emt 0:10:35]} Nc4 {[%emt 0:05:04]} 26. Nf4 {[%emt 0:01:49]} Ra8 {[%emt 0:03:05]} 27. Bd1 {[%emt 0:04:13]} Ra3 {[%emt 0:07:27]} 28. Rb3 {[%emt 0:05:02]} Rea8 {[%emt 0:02:43]} 29. b6 {[%emt 0:01:22]} Qd7 {[%emt 0:01:09]} 30. e4 {[%emt 0:02:22]} Ra1 {[%emt 0:02:11]} 31. exd5 {[%emt 0:10:30]} exd5 {[%emt 0:00:10]} 32. Kh2 {[%emt 0:00:14]} g6 {[%emt 0:03:00]} 33. Rf2 {[%emt 0:04:28]} Re8 {[%emt 0:02:12]} 34. Rb1 {[%emt 0:05:11]} Rxb1 {[%emt 0:15:03]} 35. Qxb1 {[%emt 0:00:02]} Re4 {[%emt 0:04:44]} 36. Ne2 {[%emt 0:01:40]} Be3 {[%emt 0:00:57]} 37. Rf6 {[%emt 0:01:33]} Qd8 {[%emt 0:00:32]} 38. Rf3 {[%emt 0:00:55]} Nd2 {[%emt 0:00:28]} 39. Qd3 {[%emt 0:00:01]} Nxf3+ {[%emt 0:00:19]} 40. gxf3 {[%emt 0:00:01]} Re6 {[%emt 0:01:21]} 41. Bb3 {[%emt 0:00:28]} Qh4 {[%emt 0:01:22]} 42. Bxd5 {[%emt 0:01:46]} Qf2+ {[%emt 0:00:03]} 43. Kh1 {[%emt 0:00:04]} Qf1+ {[%emt 0:00:08]} 44. Kh2 {[%emt 0:00:03]} Bg1+ {[%emt 0:00:13]} 0-1